Cogmind - Beta 12 @@@ ROGUE MODE // 2023.04.10 @ 15:26:02 Player: wchar_t Result: Destroyed by S-27 Virus with Autogun Performance ------------- Evolutions (6) 3000 Regions Visited (16) 3200 Robots Destroyed (81) 405 Value Destroyed (2136) 2136 Prototype IDs (47) 940 Alien Tech Used (0) 0 Bonus (11) 11 TOTAL SCORE: 9692 Bonus ------- High Alert Combat Kills 24 Follower Combat Kills 70 Aligned with FarCom 300 Met Data Miner 300 Friendly Fire -683 Cogmind --------- Core Integrity 0/1150 Matter 300/300 Energy 82/100 System Corruption 12% Temperature Cool (0) Movement Core (50) Location -4/Factory Parts ------- > --- POWER (1) -------- (None) > --- PROPULSION (7) --- Combat Gravmag System (fused) Combat Gravmag System > --- UTILITY (9) ------ Advanced Signal Interpreter Improved System Shield > --- WEAPON (2) ------- (None) > --- INVENTORY (5) ---- Light Ion Engine Improved Energy Well (400) Transmission Jammer Molecular Scythe Peak State ------------ > --- POWER ------------ Light Deuterium Engine > --- PROPULSION ------- Gravmag Array Gravmag Array Improved Linear Gravjet Nuclear Pulse Array > --- UTILITY ---------- Scrap Engine Medium Storage Unit Advanced Weight Redist. System Improved Signal Interpreter Improved Signal Interpreter Experimental Hacking Suite System Shield System Shield > --- WEAPON ----------- Ionic Axe Ionic Axe > --- INVENTORY -------- Micro Fission Core Gravmag Array Gravmag Array Linear Gravjet Improved Energy Well Transmission Jammer Molecular Scythe Molecular Scythe [Rating: 101] Favorites ----------- Power Improved Ion Engine Engine Improved Ion Engine Power Core Light Nuclear Core Reactor Light Antimatter Reactor Propulsion Aluminum Leg Leg Aluminum Leg Wheel Compact Wheel Hover Unit Gravmag Array Flight Unit Improved VTOL Module Utility Improved Signal Interpreter Device Advanced Weight Redist. System Storage Medium Storage Unit Processor Improved Signal Interpreter Hackware Hacking Suite Protection Hardened Medium Armor Plating Weapon Particle Cannon Energy Gun Medium Laser Energy Cannon Particle Cannon Launcher Rocket Array Impact Weapon Heavy Flail Slashing Weapon Phasing Sabre Piercing Weapon Kinetic Spear Build | -11 -10 -10 -10 -9 -8 -8 -8 -6 -6 -6 -6 -6 -6 -5 -5 -4 ------- Run | Jun Mat Min Exi Min Mat Sto Rec Fac Was Fac Low Low Dat Pro Fac Fac Slots Evolved 12 | . . . . . 4 . . 4 . . . . . . 2 2 Power . | . . . . . . . . . . . . . . . . . Propulsion 5 | . . . . . 2 . . 1 . . . . . . 1 1 Utility 7 | . . . . . 2 . . 3 . . . . . . 1 1 Weapon . | . . . . . . . . . . . . . . . . . Parts Attached 141 | 6 3 3 . . 19 3 7 12 1 18 3 4 . . 27 35 Power 13 | 1 1 . . . 1 1 1 . . 2 . . . . 2 4 Engine 7 | 1 1 . . . . 1 . . . 2 . . . . 2 . Core 3 | . . . . . 1 . 1 . . . . . . . . 1 Reactor 3 | . . . . . . . . . . . . . . . . 3 Propulsion 44 | 2 . 2 . . 9 1 3 . 1 6 1 1 . . 6 12 Treads . | . . . . . . . . . . . . . . . . . Leg 11 | 2 . . . . 8 1 . . . . . . . . . . Wheel 1 | . . 1 . . . . . . . . . . . . . . Hover 20 | . . . . . . . . . . 3 . 1 . . 4 12 Flight 12 | . . 1 . . 1 . 3 . 1 3 1 . . . 2 . Utility 42 | 1 1 1 . . 4 1 3 8 . 2 . 1 . . 10 10 Device 20 | . 1 . . . 2 . 2 5 . 1 . . . . 4 5 Storage 5 | 1 . 1 . . . . 1 . . . . . . . 2 . Processor 9 | . . . . . 1 . . 3 . . . 1 . . 2 2 Hackware 5 | . . . . . . . . . . 1 . . . . 2 2 Protection 3 | . . . . . 1 1 . . . . . . . . . 1 Artifact . | . . . . . . . . . . . . . . . . . Weapon 42 | 2 1 . . . 5 . . 4 . 8 2 2 . . 9 9 Energy Gun 7 | 2 . . . . 2 . . 2 . 1 . . . . . . Energy Cannon 4 | . 1 . . . 2 . . . . . . . . . . 1 Ballistic Gun . | . . . . . . . . . . . . . . . . . Ballistic Cannon . | . . . . . . . . . . . . . . . . . Launcher 7 | . . . . . 1 . . 1 . 4 1 . . . . . Special Weapon . | . . . . . . . . . . . . . . . . . Impact Weapon 7 | . . . . . . . . 1 . 3 1 2 . . . . Slashing Weapon 14 | . . . . . . . . . . . . . . . 9 5 Piercing Weapon 3 | . . . . . . . . . . . . . . . . 3 Special Melee Weapon . | . . . . . . . . . . . . . . . . . Unidentified Prototypes 14 | . . . . . 4 1 . . . 4 . . . . 1 4 Parts Lost 54 | . . 1 . . 3 . . . . 8 3 . . . 8 31 Power 7 | . . . . . . . . . . 2 . . . . . 5 Propulsion 21 | . . 1 . . 1 . . . . 2 3 . . . 2 12 Utility 20 | . . . . . . . . . . 3 . . . . 6 11 Weapon 6 | . . . . . 2 . . . . 1 . . . . . 3 Highest Loss Streak 10 | . . 1 . . 3 . . . . 3 1 . . . 3 10 To Critical Strikes 2 | . . . . . . . . . . . . . . . . 2 Average Slot Usage (%) 76 | . 82 99 100 100 97 100 95 74 74 79 47 40 46 46 40 56 Engine 5 | . 3 14 14 14 3 8 8 . . 4 . . . . 2 . Core 1 | . . . . . 5 . . 6 6 1 . . . . . . Leg 12 | . 28 14 14 14 32 36 27 . . . . . . . . . Wheel 1 | . . 1 14 14 1 . . . . . . . . . . . Hover 2 | . . . . . . . . . . . 2 1 6 6 4 15 Flight 5 | . . 12 . . . . 6 20 21 23 7 . . . 3 . Device 9 | . 7 14 14 14 13 9 9 17 20 14 6 6 6 6 3 6 Storage 8 | . 14 14 14 14 9 9 9 6 6 6 6 6 6 6 2 4 Processor 8 | . . . . . 6 9 9 17 13 13 13 17 20 20 13 11 Hackware 2 | . . . . . . . . . . 4 6 6 6 6 4 3 Protection 2 | . . . . . 7 9 8 . . . . . . . . . Energy Gun 5 | . 15 14 14 14 8 9 8 2 . 1 . . . . . . Energy Cannon 5 | . 12 14 14 14 9 9 8 . . . . . . . . 1 Slashing Weapon 1 | . . . . . . . . . . . . . . . 3 6 Naked Turns . | . . . . . . . . . . . . . . . . . Heaviest Build 47 | 14 19 34 34 34 40 47 47 24 24 32 13 14 10 10 21 45 Greatest Support 62 | 20 20 20 16 16 40 42 42 24 39 39 19 12 12 12 40 62 Greatest Overweight (x) 4 | . . 3 2 2 2 1 3 . . 2 4 1 3 . 4 2 Average Overweight (x) . | . . 1 2 2 . . . . . . . . . . . . Largest Inventory Capacity 15 | 8 8 15 15 15 15 15 15 10 10 10 10 10 10 10 10 10 Average Capacity 11 | 7 8 9 15 15 15 15 14 10 10 10 10 10 10 10 7 9 Most Carried 15 | 4 8 9 10 10 15 15 15 10 10 10 10 10 10 10 10 10 Average Carried 9 | 1 7 7 8 10 14 14 13 9 10 9 8 8 10 9 7 6 Final Capacity 15 | 8 8 15 15 15 15 15 10 10 10 10 10 10 10 10 10 5 Final Carried 15 | 4 7 8 10 10 15 15 10 10 10 8 10 10 10 10 10 4 Scrap Engine Consumption 8 | . . . . . . . . . . . . . . . . 8 Constructs Created 3 | . . . . . . . . . . . . . . . . 3 Class Distribution -------------------- 57% | Mutant 30% | Scavenger-Mutant 5% | Scavenger-Sprinter 3% | Hacker-Mutant Dominant Class ---------------- Mutant | -10/Materials Mutant | -10/Mines Mutant | -10/Exiles Mutant | -9/Mines Scavenger-Mutant | -8/Materials Scavenger-Mutant | -8/Storage Scavenger-Mutant | -8/Recycling Scavenger-Sprinter | -6/Factory Scavenger-Sprinter | -6/Waste Sprinter | -6/Factory Mutant | -6/Lower Caves Mutant | -6/Lower Caves Mutant | -6/Data Miner Mutant | -5/Proximity Caves Mutant | -5/Factory Scavenger-Mutant | -4/Factory Resources | -11 -10 -10 -10 -9 -8 -8 -8 -6 -6 -6 -6 -6 -6 -5 -5 -4 ----------- Run | Jun Mat Min Exi Min Mat Sto Rec Fac Was Fac Low Low Dat Pro Fac Fac Matter Collected 1575 | 252 38 22 . . 185 20 80 10 186 23 73 96 . 16 320 254 Remotely . | . . . . . . . . . . . . . . . . . Salvage Created 3397 | . 349 119 . . 388 159 585 50 72 209 60 37 . . 832 537 Parts 181 | . 22 5 . . 24 8 21 6 . 10 5 2 . . 45 33 Haulers Intercepted 3 | . 1 . . . 1 . . . . . . . . . . 1 Recyclers Shooed 4 | . 1 . . . . . 1 . . . . . . . 2 . Parts Field Recycled . | . . . . . . . . . . . . . . . . . Retrieved Matter . | . . . . . . . . . . . . . . . . . Parts Self-Destructed 2 | . . . . . . . . . . . 1 1 . . . . Prevented . | . . . . . . . . . . . . . . . . . Kills | -11 -10 -10 -10 -9 -8 -8 -8 -6 -6 -6 -6 -6 -6 -5 -5 -4 ------- Run | Jun Mat Min Exi Min Mat Sto Rec Fac Was Fac Low Low Dat Pro Fac Fac Combat Hostiles Destroyed 42 | . 6 3 . . 6 3 1 4 . 7 5 1 . . 2 4 Melee 7 | . . . . . . . . . . . . 1 . . 2 4 Guns 11 | . 5 1 . . 2 2 1 . . . . . . . . . Cannons 8 | . 1 2 . . 4 1 . . . . . . . . . . AOE 15 | . . . . . . . . 4 . 7 4 . . . . . Classes Destroyed 13 | . 3 2 . . 3 . . 1 . 2 1 1 . . . . Worker 4 | . . . . . . . . 1 . . . . . . 2 1 Builder 3 | . 1 . . . . . . . . . . . . . 2 . Tunneler 4 | . . . . . . . . . . 1 . . . . 1 2 Hauler 3 | . 1 . . . 1 . . . . . . . . . . 1 Recycler 13 | . . 1 . . . . 7 . . . . . . . 4 1 Operator 3 | . . . . . 1 . . 1 . . . . . . 1 . Watcher 6 | . . . . . 1 . . . . 1 . . . . 2 2 Swarmer 18 | . . 3 . . . . . 4 . 7 4 . . . . . Grunt 12 | . 6 . . . 5 1 . . . . . . . . . . Sentry 4 | . . . . . 1 2 1 . . . . . . . . . Programmer 7 | . . . . . . . . . . . . 1 . . 2 4 Thief 1 | . . . . . . . . . . . 1 . . . . . Wasp 2 | . . . . . . . . . 2 . . . . . . . Martyr 1 | . . . . . . . . . . 1 . . . . . . Best Kill Streak 8 | . 3 6 . . 2 1 4 5 . 8 4 1 . . 3 3 Combat Bots Only 7 | . 2 4 . . 2 1 1 4 . 7 4 1 . . 2 1 Max Kills in Single Turn 4 | . 2 1 . . 1 1 1 2 1 4 3 1 . . 1 1 Gunslinging . | . . . . . . . . . . . . . . . . . Exploded 4 | . . . . . . . . 2 . 4 3 . . . . . Melee 1 | . . . . . . . . . . . . 1 . . 1 1 Uniques/NPCs Destroyed . | . . . . . . . . . . . . . . . . . Combat | -11 -10 -10 -10 -9 -8 -8 -8 -6 -6 -6 -6 -6 -6 -5 -5 -4 -------- Run | Jun Mat Min Exi Min Mat Sto Rec Fac Was Fac Low Low Dat Pro Fac Fac Damage Taken 8184 | . 264 116 . 3 323 261 88 251 . 757 378 188 . . 1414 4141 Core 2722 | . 58 34 . 3 31 29 12 84 . 122 203 133 . . 857 1156 Absorbed by Shields . | . . . . . . . . . . . . . . . . . Regen/Repaired (Parts) 128 | . . . . . . . . . . 128 . . . . . . Core Remaining (%) 59 | 100 . . . 62 . . 86 . . . . . . 36 14 . Volleys Fired 96 | . 18 9 . . 24 16 12 9 . 6 2 . . . . . Largest 2 | . 2 2 . . 2 2 2 1 . 1 1 . . . . . Hottest 129 | . 118 118 . . 129 129 129 61 . 55 45 . . . . . Shots Fired 170 | . 36 18 . . 43 32 24 9 . 6 2 . . . . . Gun 81 | . 18 9 . . 19 16 12 3 . 4 . . . . . . Cannon 79 | . 18 9 . . 24 16 12 . . . . . . . . . Launcher 10 | . . . . . . . . 6 . 2 2 . . . . . Special . | . . . . . . . . . . . . . . . . . Kinetic . | . . . . . . . . . . . . . . . . . Thermal 156 | . 36 18 . . 43 32 24 3 . . . . . . . . Explosive 10 | . . . . . . . . 6 . 2 2 . . . . . Electromagnetic 4 | . . . . . . . . . . 4 . . . . . . Robot Hit Streak 20 | . 20 1 . . 5 6 7 . . 1 1 . . . . . Robot Miss Streak 13 | . 1 7 . . 3 4 1 4 . 13 7 . . . . . Penetration Max . | . . . . . . . . . . . . . . . . . Secondary Targets . | . . . . . . . . . . . . . . . . . Shots Hit Robots 162 | . 27 5 . . 27 15 14 1 2 6 4 4 . . 30 27 Core Hits 97 | . 16 5 . . 15 4 8 8 . 12 6 1 . . 12 10 Critical Kills . | . . . . . . . . . . . . . . . . . Critical Parts Destroyed 4 | . . . . . . . . . 2 2 . . . . . . Critical Strikes 15 | . 1 2 . . 4 1 . . 2 2 . . . . 1 2 Burn 8 | . 1 2 . . 4 1 . . . . . . . . . . Smash 4 | . . . . . . . . . 2 2 . . . . . . Sever 3 | . . . . . . . . . . . . . . . 1 2 Melee Attacks 109 | . . . . . . . . 5 2 5 4 8 . . 41 44 Impact 24 | . . . . . . . . 5 2 5 4 8 . . . . Slashing 83 | . . . . . . . . . . . . . . . 41 42 Piercing 2 | . . . . . . . . . . . . . . . . 2 Sneak Attacks 28 | . . . . . . . . 1 2 2 . . . . 16 7 Combat Hostiles . | . . . . . . . . . . . . . . . . . Follow-up Attacks 1 | . . . . . . . . . . . . . . . . 1 Damage Inflicted 7920 | . 515 124 . 10 589 330 283 681 200 773 372 148 . . 2183 1712 Guns 737 | . 201 25 . . 231 160 120 . . . . . . . . . Cannons 1022 | . 266 80 . . 348 165 163 . . . . . . . . . Explosions 1282 | . . . . . . . . 550 . 482 250 . . . . . Melee 4786 | . . . . . . . . 131 200 291 122 148 . . 2182 1712 Ramming 93 | . 48 19 . 10 10 5 . . . . . . . . 1 . Kinetic . | . . . . . . . . . . . . . . . . . Thermal 1841 | . 467 105 . . 579 325 283 . . 82 . . . . . . Explosive 1200 | . . . . . . . . 550 . 400 250 . . . . . Electromagnetic . | . . . . . . . . . . . . . . . . . Impact 892 | . . . . . . . . 131 200 291 122 148 . . . . Slashing 3796 | . . . . . . . . . . . . . . . 2182 1614 Piercing 98 | . . . . . . . . . . . . . . . . 98 Highest Corruption 12 | . . . . . . . . . . . . 1 1 1 1 12 Average Corruption 4 | . . . . . . . . . . . . 1 1 1 1 8 Corruption Purged . | . . . . . . . . . . . . . . . . . Corruption Blocked . | . . . . . . . . . . . . . . . . . Effects 33 | . . . . . . . . . . . . 2 . 3 2 26 Message Errors 7 | . . . . . . . . . . . . . . . . 7 Matter Fused 9 | . . . . . . . . . . . . 1 . 3 . 5 Heat Flow Errors 4 | . . . . . . . . . . . . . . . 1 3 Energy Discharges 4 | . . . . . . . . . . . . 1 . . . 3 Parts Fused 1 | . . . . . . . . . . . . . . . . 1 Data Loss (minor) 2 | . . . . . . . . . . . . . . . 1 1 Data Loss (major) 1 | . . . . . . . . . . . . . . . . 1 Alerts 2 | . . . . . . . . . . . . . . . . 2 Misdirections 3 | . . . . . . . . . . . . . . . . 3 Overload Shots . | . . . . . . . . . . . . . . . . . Overflow Damage 1474 | . . . . . . 6 . 179 200 210 33 . . . 699 147 Projectiles 6 | . . . . . . 6 . . . . . . . . . . Explosions 59 | . . . . . . . . 58 . 1 . . . . . . Melee 1409 | . . . . . . . . 121 200 209 33 . . . 699 147 Knockbacks 5 | . . . . . . . . . 1 3 1 . . . . . Impact 5 | . . . . . . . . . 1 3 1 . . . . . Kinetic . | . . . . . . . . . . . . . . . . . Secondary . | . . . . . . . . . . . . . . . . . Self-Inflicted Damage 89 | . . 5 . 3 5 . . 20 . 16 40 . . . . . Shots 4 | . . . . . . . . 1 . 1 2 . . . . . Rammed 4 | . . 1 . 1 1 . . . . . . . . . 1 . Targets Rammed 18 | . 8 5 . 2 1 1 . . . . . . . . 1 . Kicked 14 | . 8 4 . 1 . 1 . . . . . . . . . . Crushed . | . . . . . . . . . . . . . . . . . Highest Temperature 310 | . 273 154 . . 108 310 117 15 . 28 . . . . 266 235 Average Temperature 75 | . 80 70 . . 31 116 52 8 . 10 . . . . 147 101 Received Heat Transfer 1153 | . 141 . . . 207 126 27 21 . 123 111 . . . 270 127 Effects 2 | . . . . . . 2 . . . . . . . . . . Interference 2 | . . . . . . 2 . . . . . . . . . . Siege Activations . | . . . . . . . . . . . . . . . . . Robots Corrupted . | . . . . . . . . . . . . . . . . . Combat Hostiles . | . . . . . . . . . . . . . . . . . Parts Fried 6 | . . . . . . . . 1 1 3 1 . . . . . Impact Corruptions 19 | . . . . . . . . 4 6 6 3 . . . . . Robots Melted . | . . . . . . . . . . . . . . . . . Combat Hostiles . | . . . . . . . . . . . . . . . . . Parts Melted 5 | . 2 . . . 1 . 2 . . . . . . . . . Heat Transferred 4207 | . 1147 370 . . 1406 666 518 . . 100 . . . . . . Parts Sabotaged . | . . . . . . . . . . . . . . . . . Parts Stolen 3 | . . . . . . . . . . . 1 2 . . . . Parts Stripped . | . . . . . . . . . . . . . . . . . Power Chain Reactions . | . . . . . . . . . . . . . . . . . Missiles Intercepted . | . . . . . . . . . . . . . . . . . Alert | -11 -10 -10 -10 -9 -8 -8 -8 -6 -6 -6 -6 -6 -6 -5 -5 -4 ------- Run | Jun Mat Min Exi Min Mat Sto Rec Fac Was Fac Low Low Dat Pro Fac Fac Peak Influence 691 | . 176 128 . . 137 147 55 276 96 691 . . . . 163 249 Initial 96 | . . 68 . . . . 5 64 96 67 . . . . . 73 Average 66 | . 60 39 . . 53 28 15 163 96 228 . . . . 45 132 Maximum Alert Level 2 | . . . . . . . . 1 . 2 . . . . . 1 Low Security (%) 93 | 100 100 100 . 100 100 100 100 59 100 57 . . . . 100 88 Level 1 4 | . . . . . . . . 40 . 21 . . . . . 11 Level 2 1 | . . . . . . . . . . 20 . . . . . . Level 3 . | . . . . . . . . . . . . . . . . . Level 4 . | . . . . . . . . . . . . . . . . . Level 5 . | . . . . . . . . . . . . . . . . . High Security . | . . . . . . . . . . . . . . . . . Max Security . | . . . . . . . . . . . . . . . . . Squads Dispatched 15 | . . . . . 1 . . 2 . 2 . 1 . . 3 6 Investigation 2 | . . . . . . . . . . 1 . . . . 1 . Extermination 4 | . . . . . . . . . . 1 . . . . 1 2 Reinforcement 7 | . . . . . 1 . . 2 . . . . . . . 4 Assault 2 | . . . . . . . . . . . . 1 . . 1 . Garrison . | . . . . . . . . . . . . . . . . . Intercept . | . . . . . . . . . . . . . . . . . Searches Triggered 1 | . . . . . . . . . . 1 . . . . . . Data Miner Redirects 2 | . . . . . . . . . . . . . . . 2 . Construction Impeded . | . . . . . . . . . . . . . . . . . Haulers Reinforced 2 | . . . . . . . . . . . . . . . . 2 Active Scanning Responses . | . . . . . . . . . . . . . . . . . Cargo Convoy Interrupts . | . . . . . . . . . . . . . . . . . Stealth | -11 -10 -10 -10 -9 -8 -8 -8 -6 -6 -6 -6 -6 -6 -5 -5 -4 --------- Run | Jun Mat Min Exi Min Mat Sto Rec Fac Was Fac Low Low Dat Pro Fac Fac Distress Signals 6 | . . . . . 1 . . 1 . . . . . . 3 1 Communications Jammed . | . . . . . . . . . . . . . . . . . Distress Signals . | . . . . . . . . . . . . . . . . . Times Spotted 172 | . 7 2 . . 15 3 1 16 . 24 18 10 . . 24 52 Peak Tracking Total 17 | . 2 2 . . 3 3 1 14 . 14 6 8 . . 6 17 Tactical Retreats 31 | . 1 . . . . . . 1 . 4 4 1 . . 8 12 Traps | -11 -10 -10 -10 -9 -8 -8 -8 -6 -6 -6 -6 -6 -6 -5 -5 -4 ------- Run | Jun Mat Min Exi Min Mat Sto Rec Fac Was Fac Low Low Dat Pro Fac Fac Traps Triggered 7 | . . . . . . . . 1 . 2 . . . . 3 1 Indirectly . | . . . . . . . . . . . . . . . . . Trap Hack Attempts . | . . . . . . . . . . . . . . . . . Triggered . | . . . . . . . . . . . . . . . . . Disarmed . | . . . . . . . . . . . . . . . . . Reprogrammed . | . . . . . . . . . . . . . . . . . Reused . | . . . . . . . . . . . . . . . . . Traps Extracted . | . . . . . . . . . . . . . . . . . Installed . | . . . . . . . . . . . . . . . . . Triggered . | . . . . . . . . . . . . . . . . . Most Traps Carried 1 | . . 1 . . . . . . . . . . . . . . Machines | -11 -10 -10 -10 -9 -8 -8 -8 -6 -6 -6 -6 -6 -6 -5 -5 -4 ---------- Run | Jun Mat Min Exi Min Mat Sto Rec Fac Was Fac Low Low Dat Pro Fac Fac Machines Disabled 9 | . . . . . . 3 . 1 . 4 . . . . 1 . Max in Single Turn 3 | . . . . . . 1 . 1 . 3 . . . . 1 . Garrison Access 2 | . . . . . . . . 1 . . . . . . 1 . Machines Repaired . | . . . . . . . . . . . . . . . . . Machines Sabotaged . | . . . . . . . . . . . . . . . . . Overloaded Fab Kills . | . . . . . . . . . . . . . . . . . Hacking | -11 -10 -10 -10 -9 -8 -8 -8 -6 -6 -6 -6 -6 -6 -5 -5 -4 --------- Run | Jun Mat Min Exi Min Mat Sto Rec Fac Was Fac Low Low Dat Pro Fac Fac Machines Accessed 32 | . 1 . 2 . 3 3 2 4 . 5 . 1 4 . 5 2 Terminals 20 | . 1 . . . 3 3 1 3 . 3 . . . . 4 2 Fabricators 1 | . . . . . . . . . . . . . . . 1 . Repair Stations 2 | . . . . . . . . . . 2 . . . . . . Recycling Units 1 | . . . . . . . 1 . . . . . . . . . Scanalyzers . | . . . . . . . . . . . . . . . . . Garrison Access 1 | . . . . . . . . 1 . . . . . . . . Total Hacks 86 | . 2 . 2 . 9 6 4 6 . 10 . 1 30 . 13 3 Successful 50 | . 1 . 2 . 2 2 1 2 . 4 . 1 30 . 5 . Failed 36 | . 1 . . . 7 4 3 4 . 6 . . . . 8 3 Catastrophic 11 | . 1 . . . 1 2 . 2 . 2 . . . . 3 . Database Lockouts . | . . . . . . . . . . . . . . . . . Manual 25 | . . . 1 . 7 2 4 3 . 4 . . . . 4 . Terminals 39 | . 2 . . . 9 6 2 4 . 5 . . . . 8 3 Fabricators 5 | . . . . . . . . . . . . . . . 5 . Repair Stations 5 | . . . . . . . . . . 5 . . . . . . Recycling Units 2 | . . . . . . . 2 . . . . . . . . . Scanalyzers . | . . . . . . . . . . . . . . . . . Garrison Access 2 | . . . . . . . . 2 . . . . . . . . Terminal Hacks 39 | . 1 . 2 . 2 2 . . . . . 1 30 . 1 . Record 12 | . . . 1 . . . . . . . . . 11 . . . Part Schematic 11 | . . . . . . . . . . . . . 11 . . . Robot Schematic 5 | . . . . . . . . . . . . . 5 . . . Prototype ID Bank 3 | . . . . . . . . . . . . . 3 . . . Open Door 2 | . . . . . . 1 . . . . . 1 . . . . Branch Access Points 1 | . 1 . . . . . . . . . . . . . . . Unreport Threat 1 | . . . . . . . . . . . . . . . 1 . Hauler Manifests 1 | . . . . . 1 . . . . . . . . . . . Registered Components 1 | . . . . . 1 . . . . . . . . . . . Zone Layout 1 | . . . . . . 1 . . . . . . . . . . EX-Prototype ID Bank 1 | . . . 1 . . . . . . . . . . . . . Fabricator Hacks 3 | . . . . . . . . . . . . . . . 3 . Network Status 1 | . . . . . . . . . . . . . . . 1 . Load Schematic 1 | . . . . . . . . . . . . . . . 1 . Build 1 | . . . . . . . . . . . . . . . 1 . Repair Station Hacks 3 | . . . . . . . . . . 3 . . . . . . Scan Component 2 | . . . . . . . . . . 2 . . . . . . Repair 1 | . . . . . . . . . . 1 . . . . . . Recycling Unit Hacks . | . . . . . . . . . . . . . . . . . Scanalyzer . | . . . . . . . . . . . . . . . . . Garrison Access Hacks 1 | . . . . . . . . 1 . . . . . . . . Seal Access 1 | . . . . . . . . 1 . . . . . . . . Unauthorized Hacks 4 | . . . . . . . 1 1 . 1 . . . . 1 . Terminals 3 | . . . . . . . . 1 . 1 . . . . 1 . Assimilate 1 | . . . . . . . . . . . . . . . 1 . Botnet 1 | . . . . . . . . 1 . . . . . . . . Operators 1 | . . . . . . . . . . 1 . . . . . . Fabricators . | . . . . . . . . . . . . . . . . . Repair Stations . | . . . . . . . . . . . . . . . . . Recycling Units 1 | . . . . . . . 1 . . . . . . . . . Tunnel 1 | . . . . . . . 1 . . . . . . . . . Scanalyzers . | . . . . . . . . . . . . . . . . . Garrison Access . | . . . . . . . . . . . . . . . . . Data Cores Recovered 1 | . . . . . 1 . . . . . . . . . . . Used 1 | . . . . . 1 . . . . . . . . . . . Hacking Detections 22 | . 1 . . . 3 3 1 3 . 5 . . . . 4 2 Full Trace Events 2 | . 1 . . . . . . . . . . . . . 1 . Feedback Events . | . . . . . . . . . . . . . . . . . Feedback Blocked . | . . . . . . . . . . . . . . . . . Robot Schematics Acquired 5 | . . . . . . . . . . . . . 5 . . . Robots Built . | . . . . . . . . . . . . . . . . . Authchips . | . . . . . . . . . . . . . . . . . Time . | . . . . . . . . . . . . . . . . . Total Robot Build Rating . | . . . . . . . . . . . . . . . . . Part Schematics Acquired 11 | . . . . . . . . . . . . . 11 . . . Parts Built . | . . . . . . . . . . . . . . . . . Authchips . | . . . . . . . . . . . . . . . . . Time 169 | . . . . . . . . . . . . . . . 169 . Total Part Build Rating . | . . . . . . . . . . . . . . . . . Parts Repaired 1 | . . . . . . . . . . 1 . . . . . . Time 31 | . . . . . . . . . . 31 . . . . . . Parts Recycled . | . . . . . . . . . . . . . . . . . Recycled Matter . | . . . . . . . . . . . . . . . . . Retrieved Matter . | . . . . . . . . . . . . . . . . . Retrieved Components . | . . . . . . . . . . . . . . . . . Parts Scanalyzed . | . . . . . . . . . . . . . . . . . Part Schematics Acquired . | . . . . . . . . . . . . . . . . . Parts Damaged . | . . . . . . . . . . . . . . . . . Bothacking | -11 -10 -10 -10 -9 -8 -8 -8 -6 -6 -6 -6 -6 -6 -5 -5 -4 ------------ Run | Jun Mat Min Exi Min Mat Sto Rec Fac Was Fac Low Low Dat Pro Fac Fac Used RIF Installer . | . . . . . . . . . . . . . . . . . Robots Hacked . | . . . . . . . . . . . . . . . . . Non-combat . | . . . . . . . . . . . . . . . . . Combat . | . . . . . . . . . . . . . . . . . Robot Hacks Applied . | . . . . . . . . . . . . . . . . . Relay Couplers Released . | . . . . . . . . . . . . . . . . . Fabnet Peak Effective % . | . . . . . . . . . . . . . . . . . Robots Rewired . | . . . . . . . . . . . . . . . . . Allies Hacked . | . . . . . . . . . . . . . . . . . Hacks Repelled . | . . . . . . . . . . . . . . . . . Allies | -11 -10 -10 -10 -9 -8 -8 -8 -6 -6 -6 -6 -6 -6 -5 -5 -4 -------- Run | Jun Mat Min Exi Min Mat Sto Rec Fac Was Fac Low Low Dat Pro Fac Fac Total Allies 23 | . . . . 3 . . . . 20 . . . . . . . Largest Group 20 | . . . . 3 3 . . . 20 1 . . . . . . Highest-Rated Group 787 | . . . . 40 40 . . . 787 50 . . . . . . Highest-Rated Ally 50 | . . . . 16 16 . . . 50 50 . . . . . . Total Orders 2 | . . . . . . . . 2 . . . . . . . . EXPLORE 2 | . . . . . . . . 2 . . . . . . . . Ally Attacks 33 | . . . . . 33 . . . . . . . . . . . Total Damage 322 | . . . . . 322 . . . . . . . . . . . Kills 4 | . . . . . 4 . . . . . . . . . . . Allies Corrupted 3 | . . . . . . . . . 2 1 . . . . . . Allies Melted 1 | . . . . . 1 . . . . . . . . . . . Intel | -11 -10 -10 -10 -9 -8 -8 -8 -6 -6 -6 -6 -6 -6 -5 -5 -4 ------- Run | Jun Mat Min Exi Min Mat Sto Rec Fac Was Fac Low Low Dat Pro Fac Fac Robot Analysis Total . | . . . . . . . . . . . . . . . . . Derelict Logs Recovered 7 | . . 2 . 2 . . . . . . 2 1 . . . . Drone Launches 2 | . . . . . . . . 2 . . . . . . . . Drone Recoveries 2 | . . . . . . . . 2 . . . . . . . . Exploration | -11 -10 -10 -10 -9 -8 -8 -8 -6 -6 -6 -6 -6 -6 -5 -5 -4 ------------- Run | Jun Mat Min Exi Min Mat Sto Rec Fac Was Fac Low Low Dat Pro Fac Fac Turns Passed 8699 | 65 234 1278 281 322 880 734 761 393 33 397 623 351 69 185 1157 936 Spaces Moved 7598 | 47 107 659 215 242 500 278 461 607 90 669 492 450 82 252 1267 1180 Core 1900 | 5 . . . . . . . . . 1 455 450 82 252 600 55 Treads . | . . . . . . . . . . . . . . . . . Legs 1730 | 42 107 571 . . 431 278 301 . . . . . . . . . Wheels 614 | . . 88 215 242 69 . . . . . . . . . . . Hover 1487 | . . . . . . . . . . 39 2 . . . 327 1119 Flight 1867 | . . . . . . . 160 607 90 629 35 . . . 340 6 Fastest Speed 27 | 50 120 120 130 130 120 120 29 29 27 27 32 50 50 50 40 40 Average Speed 83 | 112 120 185 130 130 122 186 137 29 28 31 74 50 75 50 59 54 Slowest Speed 330 | 120 120 330 130 130 190 190 239 29 29 170 250 100 200 50 250 200 Overloaded Moves . | . . . . . . . . . . . . . . . . . Propulsion Burnouts . | . . . . . . . . . . . . . . . . . Robots Hopped 24 | . . . . . . . . 8 1 7 . . . . 8 . Cave-ins Triggered . | . . . . . . . . . . . . . . . . . Exploration Rate (%) 44 | 3 26 99 60 54 26 31 35 21 75 16 68 67 70 52 21 32 Regions Visited 16 Branch Regions 9 Pre-discovered Areas 5 | . . . 1 1 . . 1 . . . . 1 1 . . . Known Exits Taken 9 | . 1 . . . 1 . 1 . . 1 1 1 1 1 1 . Unknown Exits Taken 5 | 1 . 1 1 1 . 1 . . . . . . . . . . Scrap Searched 6 | . . 1 . 1 . . . . . . 1 2 . 1 . . Spaces Dug 20 | . . . . . . . . 3 . . . . . . 7 10 Terrain Destroyed 148 | . . . . . . . . 20 . 55 56 . . . 7 10 Melee 20 | . . . . . . . . 3 . . . . . . 7 10 Projectile . | . . . . . . . . . . . . . . . . . AOE 128 | . . . . . . . . 17 . 55 56 . . . . . Terrain Rammed . | . . . . . . . . . . . . . . . . . Walls Destroyed . | . . . . . . . . . . . . . . . . . Machines Disabled . | . . . . . . . . . . . . . . . . . Actions | -11 -10 -10 -10 -9 -8 -8 -8 -6 -6 -6 -6 -6 -6 -5 -5 -4 --------- Run | Jun Mat Min Exi Min Mat Sto Rec Fac Was Fac Low Low Dat Pro Fac Fac Total 9567 | 56 176 691 216 247 726 463 570 799 91 829 737 558 88 310 1601 1409 Wait 1482 | . 30 10 . 4 153 161 72 163 . 124 234 91 7 57 247 129 Move 7539 | 46 106 658 214 241 499 277 460 593 87 655 491 449 81 251 1251 1180 Hop 20 | . . . . . . . . 6 1 6 . . . . 7 . Pick Up 60 | 4 6 2 2 . 14 1 5 3 . 3 1 3 . 1 9 6 Fast Attach 82 | 6 2 2 . . 9 1 1 6 1 10 1 2 . . 16 25 Attach 34 | . 1 . . . 2 . 4 2 . 3 1 2 . . 10 9 Detach 32 | . 1 1 . . . . 4 4 . 2 2 2 . . 9 7 Swap 25 | . . 1 . . 8 2 2 4 . 5 1 . . . 1 1 Drop 72 | . 4 3 . . 16 4 10 4 . 10 . 1 . 1 9 10 Fire 96 | . 18 9 . . 24 16 12 9 . 6 2 . . . . . Melee 107 | . . . . . . . . 5 2 5 4 8 . . 41 42 Ram 4 | . . 1 . 1 1 . . . . . . . . . 1 . Kick 14 | . 8 4 . 1 . 1 . . . . . . . . . . Crush . | . . . . . . . . . . . . . . . . . Escape Stasis . | . . . . . . . . . . . . . . . . . Rewire . | . . . . . . . . . . . . . . . . . Trap . | . . . . . . . . . . . . . . . . . Miscellaneous . | . . . . . . . . . . . . . . . . . Route ------- -11/Junkyard -10/Materials (discovered 2 exits: *Min x2) -10/Mines (discovered 3 exits: [*Mat x2] / *Exi) -10/Exiles -9/Mines -8/Materials (discovered 2 exits: Fac / *Sto) -8/Storage -8/Recycling -6/Factory -6/Waste -6/Factory (discovered 2 exits: *Low / [*Ext]) -6/Lower Caves -6/Lower Caves -6/Data Miner -5/Proximity Caves -5/Factory -4/Factory History --------- Turn | Location | Event 48 | -11/Junkyard | Discovered new exit (range 12) 66 | -11/Junkyard | Entered Materials 106 | -10/Materials | Identified exit to Mines 300 | -10/Materials | Entered Mines 316 | -10/Mines | Build established: Mutant 351 | -10/Mines | Found a hidden stash of uninstalled traps 471 | -10/Mines | Learned 2 Materials zone layouts 490 | -10/Mines | Discovered new exit (range 12) 576 | -10/Mines | Learned Materials emergency access door positions 844 | -10/Mines | Deemed a non-threat by the Exiles lab entrance 844 | -10/Mines | Discovered new exit (range 5) 881 | -10/Mines | Received a Rocket Launcher from a helpful Derelict 1362 | -10/Mines | Discovered new exit (range 7) 1578 | -10/Mines | Entered Exiles 1611 | -10/Exiles | Met 8R-AWN 1632 | -10/Exiles | Met EX-HEX 1668 | -10/Exiles | Met EX-BIN 1682 | -10/Exiles | Aligned with FarCom system 1684 | -10/Exiles | Given EX-Vault access code 1715 | -10/Exiles | Opened EX-Vault 1723 | -10/Exiles | Found Supersonic Drone Bay 1726 | -10/Exiles | Found Field Lobotomy Kit 1757 | -10/Exiles | Warned to stay clear of 0b10 Research branches 1798 | -10/Exiles | Met EX-DEC 1804 | -10/Exiles | Learned location of Zion (-7) 1842 | -10/Exiles | Discovered new exit (range 14) 1859 | -10/Exiles | Stole two prototypes: Supersonic Drone Bay, Field Lobotomy Kit 1859 | -10/Exiles | Entered Mines 1917 | -9/Mines | Assisted by bots powering up and referring to "LRC-V3" 2036 | -9/Mines | Learned 2 Materials zone layouts 2166 | -9/Mines | Discovered new exit (range 10) 2181 | -9/Mines | Entered Materials 2181 | -8/Materials | Accompanied by 3 allies 2181 | -8/Materials | Evolved 4 slots: Propulsion x2, Utility x2 2182 | -8/Materials | Identified exit to Factory 2252 | -8/Materials | Discovered new exit (range 15) 2347 | -8/Materials | Lost 3 parts (1n2w) 2448 | -8/Materials | Identified exit to Storage 2702 | -8/Materials | Build established: Scavenger-Mutant 3061 | -8/Materials | Entered Storage 3789 | -8/Storage | Used back door to open Recycling access 3789 | -8/Storage | Discovered new exit (range 4) 3795 | -8/Storage | Entered Recycling 4044 | -8/Recycling | Discovered new exit (range 4) 4072 | -8/Recycling | Identified exit to Factory 4482 | -8/Recycling | Found Scrap Engine 4556 | -8/Recycling | Entered Factory 4556 | -6/Factory | Evolved 4 slots: Propulsion x1, Utility x3 4558 | -6/Factory | FarCom data flow suspended 4949 | -6/Factory | Manually triggered Chute Trap 4949 | -6/Factory | Sucked down chute 4949 | -6/Factory | Entered Waste 4950 | -6/Waste | Joined by Warlord forces that had cleared the area 4970 | -6/Waste | Discovered new exit (range 13) 4981 | -6/Waste | Identified exit to Factory 4982 | -6/Waste | Entered Factory 4982 | -6/Factory | Accompanied by 1 ally 5080 | -6/Factory | Found Prototype Launcher 5080 | -6/Factory | Identified Rocket Array 5160 | -6/Factory | Repaired Field Propulsion Array 5266 | -6/Factory | Discovered new exit (range 15) 5316 | -6/Factory | Lost 3 parts (1p1u1w) 5329 | -6/Factory | Discovered new exit (range 12) 5332 | -6/Factory | Search patrols dispatched 5334 | -6/Factory | Destroyed 7 combat bots 5340 | -6/Factory | Identified exit to Lower Caves 5379 | -6/Factory | Entered Lower Caves 5446 | -6/Lower Caves | Learned Factory security intel 5496 | -6/Lower Caves | Encountered a Warlord checkpoint 5565 | -6/Lower Caves | Build established: Mutant 5605 | -6/Lower Caves | Attracted the attention of an 0b10 checkpoint 5617 | -6/Lower Caves | Learned location of 1 exit from Proximity Caves 5995 | -6/Lower Caves | Discovered new exit (range 14) 6002 | -6/Lower Caves | Identified exit to Lower Caves 6002 | -6/Lower Caves | Entered another Lower Caves area 6002 | -6/Lower Caves | Spotted ZH-04F(f) 6002 | -6/Lower Caves | Spotted ST-2A1(f) 6003 | -6/Lower Caves | Encountered a Master Thief 6003 | -6/Lower Caves | Encountered a Master Thief 6003 | -6/Lower Caves | Field Lobotomy Kit stolen by Master Thief 6007 | -6/Lower Caves | Supersonic Drone Bay stolen by Master Thief 6089 | -6/Lower Caves | Core integrity fell below 50% 6155 | -6/Lower Caves | Learned location of Extension (-6) 6198 | -6/Lower Caves | Discovered new exit (range 4) 6291 | -6/Lower Caves | Attracted the attention of an 0b10 outpost 6352 | -6/Lower Caves | Identified exit to Data Miner 6353 | -6/Lower Caves | Entered Data Miner 6353 | -6/Data Miner | Discovered new exit (range 6) 6363 | -6/Data Miner | Met Data Miner 6376 | -6/Data Miner | Learned location of Section 7 (-2) 6376 | -6/Data Miner | Acquired the access code to Warlord's prototype stash 6382 | -6/Data Miner | Received God Mode back door access code from Data Miner 6413 | -6/Data Miner | Identified exit to Proximity Caves 6422 | -6/Data Miner | Entered Proximity Caves 6423 | -5/Proximity Caves | Identified exit to Factory 6529 | -5/Proximity Caves | Spotted B-75 Beast 6607 | -5/Proximity Caves | Entered Factory 6607 | -5/Factory | Evolved 2 slots: Propulsion x1, Utility x1 6960 | -5/Factory | Incoming investigation squad redirected 7023 | -5/Factory | Lost 3 parts (1n2u) 7036 | -5/Factory | Spotted B-75 Beast 7065 | -5/Factory | Core integrity fell below 50% 7074 | -5/Factory | Incoming assault squad redirected 7418 | -5/Factory | Discovered new exit (range 8) 7427 | -5/Factory | Identified exit to Factory 7634 | -5/Factory | Core integrity fell below 20% 7764 | -5/Factory | Entered another Factory area 7764 | -4/Factory | Evolved 2 slots: Propulsion x1, Utility x1 7783 | -4/Factory | Found Prototype Hackware 7783 | -4/Factory | Identified Exp. Hacking Suite 7793 | -4/Factory | Found Prototype Slashing Weapon 7795 | -4/Factory | Found Prototype Slashing Weapon 7941 | -4/Factory | Lost 3 parts (1p2u) 8110 | -4/Factory | Identified Molecular Scythe (x2) 8136 | -4/Factory | Lost 10 parts (1p5n2u2w) 8181 | -4/Factory | Found Quantum Capacitor 8208 | -4/Factory | Spotted B-86 Titan 8308 | -4/Factory | Core integrity fell below 50% 8347 | -4/Factory | System corruption reached 10% 8367 | -4/Factory | Lost 3 parts (1p1n1u) 8445 | -4/Factory | Spotted B-86 Titan 8639 | -4/Factory | Core integrity fell below 20% 8693 | -4/Factory | Lost 5 parts (1p4u) 8700 | -4/Factory | Destroyed by S-27 Virus with Autogun Last Messages --------------- 08662_ Slug penetrates Nuclear Reactor. 08662_ Med. Storage Unit destroyed. 08662_ Imp. Signal Interpreter destroyed. 08667_ Slug penetrates Wall. 08669_ System corrupted: Energy discharge (-5). 08671_ Dropped Quantum Capacitor. 08674_ M-28 Smith repairs Imp. Ion Engine. 08676_ M-28 Smith repairs Med. Treads. 08680_ R-10 Processor collects Quantum Capacitor. 08687_ System corrupted: IFF burst signal emitted. 08688_ Fusion Modulator explodes. 08688_ K-01 Serf destroyed. 08688_ S-27 Virus destroyed. 08688_ K-01 Serf destroyed. 08688_ Terminal disabled. 08693_ K-01 Serf collects debris. 08697_ Core Analyzer destroyed. 08698_ Antigrav System destroyed. 08699_ K-01 Serf destroyed. 08699_ K-01 Serf collects debris. Map ----- +----------------------------------------------------+ | ?????????????????????????????????????????????????? | | ?????????????????????????????????????????????????? | | ?????????????????????????????????????????????????? | | ?????????????????????????????????????????????????? | | ?????????????????????????????????????????????????? | | ?????????????????????????????????????????????????? | | ?????????????????????????????????????????????????? | | ?????????????????????????????????????????????????? | | ?????????????????????????????????????????????????? | | ?????????????????????????????????????????????????? | | ?????????????????????????????????????????????????? | | ?????????????????????????????????????????????????? | | ?????????????????????????????????????????????????? | | ?????????????????????????????????????????????????? | | ?????????????????????????????????????????????????? | | ?????????????????????????????????????????????????? | | ??????????????#############??????????????????????? | | ??????????????# "" #???????????????????? | | ??????????????# """ """ ""S #???????????????????? | | ?? ???????????# """ """ "" ????????????????????? | | ?? ??????????# """ """ ??????????????????????? | | ??? ?????????? ????????????????????????? | | ????? ??????????? ?????????????????????????? | | #####/############+#+###???????????????????????? | | #######/#####???????????? | | @ s ????????? | | w k! s ????????? | | s=s s ????????? | | ###############?????????? | | %##+#############+####???????????????????????? | | *#????????????? ?????????????????????????? | | #??????????? """ """ ??????###??????????????? | | #??????????# """ """ #?##### #####??????????? | | #??????????# """ """ #?# #??????????? | | #??????????# #?# #??????????? | | #??????????#! #?# #??????????? | | #??????????? ??# """ #??????????? | | #???????????? !???# """" #??????????? | | #####?????????????#####????# """" #??????????? | | #??????????????????????????# """ #??????????? | | #??????????????????????????# #??????????? | | #?????????????##################+###+#####??????? | | ############### #??????? | | ## # #??????? | | ## # ??? | | ## """ """ # #####??? | | + """ """ # ^ #??????? | | # """ """ # #####+########## #??????? | | # # # #????? ^#??????? | | + [ """ # # #?????? ?????? | +----------------------------------------------------+ Best States ------------- Heat Dissipation 55 Energy Generation 21 Energy Capacity 500 Matter Stores 300 Matter Capacity 300 Sight Range 18 Robot Scan Range 16 Terrain Scan Density 410 ECM Strength 1 Jamming Range 12 Additional Mass Support 9 Armor Coverage 225 Evasion (%) 72 Melee Accuracy 8 Target Analysis 5 Core Analysis 6 Offensive Hacking 16 Defensive Hacking 20 Item Schematics ----------------- Combat Drone Bay | -6/Data Miner | Free Lgt. Regenerative Plating | -6/Data Miner | Free Cld. Nuclear Pulse Thruster | -6/Data Miner | Free Prc. Energy Filter | -6/Data Miner | Free Enh. Coil Gun | -6/Data Miner | Free Imp. Antigrav System | -6/Data Miner | Free Adv. Coolant Injector | -6/Data Miner | Free Force Lance | -6/Data Miner | Free Imp. Fusion Compressor | -6/Data Miner | Free Adv. Reaction Control System | -6/Data Miner | Free Arm. Heavy Treads | -6/Data Miner | Free Robot Schematics ------------------ S-27 Virus | -6/Data Miner | Free B-60 Warrior | -6/Data Miner | Free B-48 Gladiator | -6/Data Miner | Free G-50 Soldier | -6/Data Miner | Free M-30 Cleanser | -6/Data Miner | Free Fabricated ------------ Nothing Alien Tech Used ----------------- None Achievements -------------- None Challenges ------------ None Game ------ Seed EtherialMappingReactor Manual? 0 Play Time 01:28:46 Cumulative 239.7 hours Start 2023.04.10 @ 13:52:10 End 2023.04.10 @ 15:26:02 Sessions 1 Manual Loads 0 Difficulty Rogue Special Mode None Game No. 100 Rogue 84 Adventurer 8 Explorer 8 Win Type - Total 17 Types 10/1/3/1/1/1/0/0/0 Lore% 86 Gallery% 81 Achievement% 74 Wizard Run 0 Options --------- ASCII 1 Keyboard 1 Movement Vi Keybinds 0 Fullscreen 1 Font 18/CogWide Map View 76x50 Tactical HUD 1 Map Filters NONE Filters NONE Steam 0 RUN: 7ac7f8c5-30d8-4423-88e6-c5ce53487c63